Cogmind - Beta 16 --- EXPLORER MODE // 2025.12.19 @ 12:59:38 Player: K.K.Y. Result: Destroyed by 57-0DS(R) with Subdweller Machine Gun Performance ------------- Evolutions (0) 0 Regions Visited (3) 600 Robots Destroyed (43) 215 Value Destroyed (851) 851 Prototype IDs (2) 40 Alien Tech Used (0) 0 Bonus (0) 0 TOTAL SCORE: 1706 Bonus ------- None Cogmind --------- Core Integrity 0/250 Matter 300/300 Energy 94/125 System Corruption 0% Temperature Cool (21) Movement Treading (160) Location -10/Subcaves Parts ------- > --- POWER (1) -------- Light Ion Engine > --- PROPULSION (2) --- Light Treads Light Treads > --- UTILITY (3) ------ Small Storage Unit Experimental Sensor Array > --- WEAPON (2) ------- Beam Rifle Beam Rifle > --- INVENTORY (8) ---- High-capacity Storage Unit Improved Terrain Scanner Core Shielding Utility Shielding Light Armor Plating Thief Drone Bay (3/3) Beamcaster Mining Laser Peak State ------------ > --- POWER ------------ Light Ion Engine > --- PROPULSION ------- Light Treads Light Treads > --- UTILITY ---------- Small Storage Unit Structural Scanner Experimental Sensor Array > --- WEAPON ----------- Beam Rifle Beam Rifle > --- INVENTORY -------- High-capacity Storage Unit Improved Terrain Scanner Core Shielding Utility Shielding Light Armor Plating Thief Drone Bay Beamcaster Mining Laser [Rating: 20] Favorites ----------- Power Ion Engine Engine Ion Engine Propulsion Light Treads Treads Light Treads Hover Unit Improved Hover Unit Utility Structural Scanner Device Structural Scanner Storage Small Storage Unit Protection Core Shielding Weapon Beam Rifle Energy Gun Beam Rifle Ballistic Gun Assault Rifle Special Weapon Mining Laser Build | -11 -10 -10 -10 ------- Run | Yrd Mat Min Sub Slots Evolved 1 | . 1 . . Power . | . . . . Propulsion . | . . . . Utility 1 | . 1 . . Weapon . | . . . . Parts Attached 24 | 7 8 9 . Power 3 | 1 1 1 . Engine 3 | 1 1 1 . Core . | . . . . Reactor . | . . . . Propulsion 6 | 2 2 2 . Treads 4 | 2 . 2 . Leg . | . . . . Wheel . | . . . . Hover 2 | . 2 . . Flight . | . . . . Utility 8 | 2 3 3 . Device 6 | 2 2 2 . Storage 1 | . 1 . . Processor . | . . . . Hackware . | . . . . Protection 1 | . . 1 . Artifact . | . . . . Weapon 7 | 2 2 3 . Energy Gun 4 | . 2 2 . Energy Cannon . | . . . . Ballistic Gun 2 | 2 . . . Ballistic Cannon . | . . . . Launcher . | . . . . Special Weapon 1 | . . 1 . Impact Weapon . | . . . . Slashing Weapon . | . . . . Piercing Weapon . | . . . . Special Melee Weapon . | . . . . Unidentified Prototypes 2 | . . 2 . Parts Lost 7 | . . 6 1 Power 1 | . . 1 . Propulsion 2 | . . 2 . Utility 2 | . . 1 1 Weapon 2 | . . 2 . Highest Loss Streak 4 | . . 4 1 To Critical Strikes . | . . . . Average Backups 6 | 3 5 7 8 Power . | . . . . Propulsion . | . . . . Utility 5 | 2 4 5 6 Weapon 1 | . 1 1 2 Tool/Special . | . . . . Unused Backups 9 | . 3 1 5 Power . | . . . . Propulsion . | . . . . Utility 7 | . 2 1 4 Weapon 2 | . 1 . 1 Tool/Special . | . . . . Average Slot Usage (%) 87 | . 95 81 98 Engine 9 | . 12 7 12 Treads 14 | . 12 15 25 Hover 5 | . 11 1 . Device 23 | . 27 20 23 Storage 9 | . 5 12 12 Protection 1 | . . 1 . Energy Gun 17 | . 8 22 25 Ballistic Gun 5 | . 15 . . Peak Build Rating 20 | 7 12 20 20 Average Rating 11 | 6 9 13 19 On Entrance 9 | . 7 11 20 Avg Prop Armor Cover (%) . | . . . . Naked Turns . | . . . . Heaviest Build 16 | 10 15 16 16 Greatest Support 40 | 40 40 40 40 Greatest Overweight (x) 4 | 3 3 4 . Average Overweight (x) . | . . . . Largest Inventory Capacity 8 | 5 8 8 8 Average Capacity 7 | 5 6 8 8 Most Carried 8 | 5 8 8 8 Average Carried 6 | 3 5 7 8 Final Capacity 8 | 5 8 8 8 Final Carried 8 | 5 6 8 8 Class Distribution -------------------- 66% | Hacker-Mutant 33% | Scavenger-Mutant Dominant Class ---------------- Hacker-Mutant | -10/Materials Scavenger-Mutant | -10/Mines Scavenger-Mutant | -10/Subcaves Resources | -11 -10 -10 -10 ----------- Run | Yrd Mat Min Sub Matter Collected 745 | 326 319 100 . Remotely . | . . . . Salvage Created 1298 | 168 526 474 130 Parts 93 | 18 42 27 6 Haulers Intercepted 2 | . 2 . . Recyclers Shooed 2 | . . 2 . Parts Field Recycled . | . . . . Retrieved Matter . | . . . . Parts Self-Destructed . | . . . . Prevented . | . . . . Parts Restored . | . . . . Kills | -11 -10 -10 -10 ------- Run | Yrd Mat Min Sub Combat Hostiles Destroyed 22 | . 10 9 3 Guns 20 | . 10 7 3 Cannons 1 | . . 1 . Classes Destroyed 11 | 3 5 2 1 Worker 4 | 2 2 . . Builder 3 | . 2 1 . Tunneler 5 | 4 . 1 . Hauler 2 | . 2 . . Recycler 4 | 1 . 3 . Watcher 3 | . 3 . . Swarmer 6 | . 4 2 . Grunt 9 | . 6 3 . Sentry 2 | . . 2 . Demolisher 2 | . . 2 . Subdweller 3 | . . . 3 Best Kill Streak 5 | 3 5 2 2 Combat Bots Only 2 | . 2 2 2 Max Kills in Single Turn 2 | 1 2 1 1 Gunslinging 1 | . 1 . . Exploded . | . . . . Melee . | . . . . Uniques/NPCs Destroyed . | . . . . Combat | -11 -10 -10 -10 -------- Run | Yrd Mat Min Sub Hostile Shots Fired 96 | . 33 34 29 Missed 21 | . 8 3 10 Hits 75 | . 25 31 19 Projectile 75 | . 25 31 19 AOE 11 | . . 9 2 Critical Strikes 4 | . 1 2 1 Damage Taken 916 | . 168 423 325 Core 251 | . 27 95 129 Absorbed by Shields . | . . . . Ignored by Resistances 552 | . 110 252 190 Core Remaining (%) 100 | 100 . . . Volleys Fired 112 | 14 48 42 8 Largest 2 | 2 2 2 2 Hottest 112 | 40 60 112 112 Shots Fired 206 | 28 96 66 16 Gun 203 | 28 96 63 16 Cannon . | . . . . Launcher . | . . . . Special 3 | . . 3 . Kinetic 104 | 28 76 . . Thermal 102 | . 20 66 16 Explosive . | . . . . Electromagnetic . | . . . . Robot Hit Streak 45 | 13 45 37 11 Robot Miss Streak 2 | 1 2 1 1 Penetration Max . | . . . . Secondary Targets 4 | . 2 1 1 Max Gunslinging Chain 1 | . 1 1 1 Shots Hit Robots 171 | 20 80 57 14 Core Hits 70 | 10 31 23 6 Critical Kills . | . . . . Critical Parts Destroyed 1 | . 1 . . Critical Strikes 5 | . 1 3 1 Burn 4 | . . 3 1 Destroy 1 | . 1 . . Melee Attacks . | . . . . Impact . | . . . . Slashing . | . . . . Piercing . | . . . . Sneak Attacks . | . . . . Combat Hostiles . | . . . . Follow-up Attacks . | . . . . Damage Inflicted 2087 | 215 902 770 200 Guns 2015 | 215 902 698 200 Cannons . | . . . . Explosions . | . . . . Melee . | . . . . Ramming . | . . . . Kinetic 917 | 215 702 . . Thermal 1170 | . 200 770 200 Explosive . | . . . . Electromagnetic . | . . . . Impact . | . . . . Slashing . | . . . . Piercing . | . . . . Highest Corruption . | . . . . Average Corruption . | . . . . Corruption Purged . | . . . . Corruption Blocked . | . . . . Overload Shots . | . . . . Overflow Damage . | . . . . Projectiles . | . . . . Explosions . | . . . . Melee . | . . . . Knockbacks . | . . . . Impact . | . . . . Kinetic . | . . . . Secondary . | . . . . Self-Inflicted Damage . | . . . . Shots . | . . . . Rammed . | . . . . Targets Rammed . | . . . . Kicked . | . . . . Crushed . | . . . . Highest Temperature 276 | . 48 276 24 Average Temperature 51 | . 11 73 15 Received Heat Transfer 366 | . 132 168 66 Effects 1 | . . 1 . Energy Bleed 1 | . . 1 . Siege Activations . | . . . . Martial Activations . | . . . . Shielding Activations . | . . . . Robots Disrupted . | . . . . Combat Hostiles . | . . . . Robots Corrupted . | . . . . Combat Hostiles . | . . . . Parts Fried . | . . . . Impact Corruptions . | . . . . Robots Melted 1 | . . 1 . Combat Hostiles 1 | . . 1 . Parts Melted 3 | . . 3 . Heat Transferred 3292 | . 450 2250 592 Parts Sabotaged . | . . . . Parts Stolen . | . . . . Parts Stripped . | . . . . Power Chain Reactions . | . . . . Alert | -11 -10 -10 -10 ------- Run | Yrd Mat Min Sub Maximum Alert Level . | . . . . Low Security (%) 100 | 100 100 100 . Level 1 . | . . . . Level 2 . | . . . . Level 3 . | . . . . Level 4 . | . . . . Level 5 . | . . . . High Security . | . . . . Max Security . | . . . . Peak Influence 70 | 10 51 70 . Initial . | . . . . Average 5 | 1 8 4 . Influence Increases 617 | 35 307 275 . Destroy 0b10 Robot/C 380 | . 200 180 . Destroy 0b10 Robot/NC 105 | 35 45 25 . Destroy Leader 80 | . 40 40 . Successful Hack 21 | . 21 . . Destroy Structure 1 | . 1 . . Lose Combat Pursuer 30 | . . 30 . Influence Decreases 617 | 35 307 275 . Time Decay 572 | 35 307 230 . Lost Part 45 | . . 45 . Squads Dispatched . | . . . . Investigation . | . . . . Extermination . | . . . . Reinforcement . | . . . . Assault . | . . . . Garrison . | . . . . Intercept . | . . . . Searches Triggered . | . . . . Construction Impeded . | . . . . Haulers Reinforced . | . . . . Active Scanning Responses . | . . . . Cargo Convoy Interrupts . | . . . . Stealth | -11 -10 -10 -10 --------- Run | Yrd Mat Min Sub Distress Signals 2 | . 1 1 . Communications Jammed . | . . . . Distress Signals . | . . . . Times Spotted 35 | . 15 9 11 Peak Tracking Total 7 | . 3 4 7 Tactical Retreats 2 | . 1 1 . Traps | -11 -10 -10 -10 ------- Run | Yrd Mat Min Sub Traps Triggered 4 | . 4 . . Indirectly . | . . . . Trap Hack Attempts . | . . . . Triggered . | . . . . Disarmed . | . . . . Reprogrammed . | . . . . Reused . | . . . . Traps Extracted . | . . . . Installed . | . . . . Triggered . | . . . . Machines | -11 -10 -10 -10 ---------- Run | Yrd Mat Min Sub Machines Disabled . | . . . . Max in Single Turn . | . . . . Machines Repaired . | . . . . Machines Dismantled . | . . . . Machines Sabotaged . | . . . . Overloaded Fab Kills . | . . . . Hacking | -11 -10 -10 -10 --------- Run | Yrd Mat Min Sub Machines Accessed 9 | . 8 1 . Terminals 7 | . 7 . . Fabricators . | . . . . Repair Stations . | . . . . Recycling Units 1 | . 1 . . Scanalyzers . | . . . . Garrison Access . | . . . . Total Hacks 17 | . 16 1 . Successful 10 | . 9 1 . Failed 7 | . 7 . . Catastrophic . | . . . . Database Lockouts . | . . . . Manual 10 | . 10 . . Terminals 13 | . 13 . . Fabricators . | . . . . Repair Stations . | . . . . Recycling Units 3 | . 3 . . Scanalyzers . | . . . . Garrison Access . | . . . . Terminal Hacks 1 | . . 1 . Open Door 1 | . . 1 . Fabricator Hacks . | . . . . Repair Station Hacks . | . . . . Recycling Unit Hacks 2 | . 2 . . Retrieve Matter 1 | . 1 . . Retrieve Components 1 | . 1 . . Scanalyzer . | . . . . Garrison Access Hacks . | . . . . Unauthorized Hacks 7 | . 7 . . Terminals 7 | . 7 . . Botnet 7 | . 7 . . Fabricators . | . . . . Repair Stations . | . . . . Recycling Units . | . . . . Scanalyzers . | . . . . Garrison Access . | . . . . Data Cores Recovered . | . . . . Used . | . . . . Hacking Detections 4 | . 4 . . Full Trace Events 2 | . 2 . . Feedback Events . | . . . . Feedback Blocked . | . . . . Robot Schematics Acquired . | . . . . Robots Built . | . . . . Authchips . | . . . . Time . | . . . . Total Robot Build Rating . | . . . . Part Schematics Acquired . | . . . . Parts Built . | . . . . Authchips . | . . . . Time . | . . . . Total Part Build Rating . | . . . . Part Studies Acquired . | . . . . Parts Repaired . | . . . . Time . | . . . . Parts Recycled . | . . . . Recycled Matter . | . . . . Retrieved Matter 79 | . 79 . . Retrieved Components 10 | . 10 . . Parts Scanalyzed . | . . . . Part Schematics Acquired . | . . . . Parts Damaged . | . . . . Bothacking | -11 -10 -10 -10 ------------ Run | Yrd Mat Min Sub Used RIF Installer . | . . . . Robots Hacked . | . . . . Non-combat . | . . . . Combat . | . . . . Robot Hacks Applied . | . . . . Relay Couplers Released . | . . . . Fabnet Peak Effective % . | . . . . Robots Rewired . | . . . . Allies Hacked . | . . . . Hacks Repelled . | . . . . Allies | -11 -10 -10 -10 -------- Run | Yrd Mat Min Sub Total Allies . | . . . . Largest Group . | . . . . Highest-Rated Group . | . . . . Highest-Rated Ally . | . . . . Total Orders . | . . . . Ally Attacks . | . . . . Total Damage . | . . . . Kills . | . . . . Allies Corrupted . | . . . . Allies Melted . | . . . . Intel | -11 -10 -10 -10 ------- Run | Yrd Mat Min Sub Active Infowar (turns) 2929 | 208 1052 1597 72 Sensors 2080 | 204 1052 752 72 Structural 2911 | 208 1047 1597 59 Robot Analysis Total . | . . . . Derelict Logs Recovered 2 | . . 2 . Drone Launches . | . . . . Drone Recoveries . | . . . . Exploration | -11 -10 -10 -10 ------------- Run | Yrd Mat Min Sub Turns Passed 2975 | 254 1052 1597 72 Spaces Moved 1557 | 130 659 737 31 Core 182 | 37 1 144 . Treads 956 | 93 275 557 31 Legs . | . . . . Wheels . | . . . . Hover 419 | . 383 36 . Flight . | . . . . Fastest Speed 50 | 50 56 116 160 Average Speed 154 | 152 133 173 160 Slowest Speed 250 | 200 200 250 160 Overloaded Moves . | . . . . Propulsion Burnouts . | . . . . Robots Hopped . | . . . . Potential Cave-ins . | . . . . Cave-ins Triggered . | . . . . Exploration Rate (%) 51 | 7 95 100 3 Regions Visited 3 Branch Regions 2 Pre-discovered Areas . | . . . . Known Exits Taken 3 | 1 1 1 . Unknown Exits Taken . | . . . . Scrap Searched 2 | . . 2 . Spaces Dug . | . . . . Terrain Destroyed . | . . . . Melee . | . . . . Projectile . | . . . . AOE . | . . . . Terrain Rammed . | . . . . Walls Destroyed . | . . . . Machines Disabled . | . . . . Actions | -11 -10 -10 -10 --------- Run | Yrd Mat Min Sub Total 1926 | 160 742 985 39 Wait 189 | . 3 186 . Move 1554 | 129 658 736 31 Hop . | . . . . Pick Up 24 | 10 7 7 . Fast Attach 20 | 2 12 6 . Attach 9 | 5 1 3 . Detach 1 | . 1 . . Swap 3 | . 3 . . Drop 14 | . 9 5 . Fire 112 | 14 48 42 8 Melee . | . . . . Ram . | . . . . Kick . | . . . . Crush . | . . . . Escape Stasis . | . . . . Rewire . | . . . . Trap . | . . . . Miscellaneous . | . . . . Route ------- -11/Scrapyard -10/Materials (discovered 6 exits: *Mat x3 / *Min x2 / *Sub) -10/Mines (discovered 3 exits: *Mat x2 / *Sub) -10/Subcaves History --------- Turn | Location | Event 7 | -11/Scrapyard | Identified exit to Materials 7 | -11/Scrapyard | Discovered exit to Materials (range 16) 255 | -11/Scrapyard | Entered Materials 255 | -10/Materials | Evolved 1 slot: Utility x1 313 | -10/Materials | Build established: Hacker-Mutant 438 | -10/Materials | Identified exit to Materials 438 | -10/Materials | Discovered exit to Materials (range 11) 714 | -10/Materials | Identified exit to Mines 714 | -10/Materials | Discovered exit to Mines (range 7) 774 | -10/Materials | Discovered exit to Materials (range 5) 855 | -10/Materials | Derelicts attacked the area 939 | -10/Materials | Discovered exit to Materials (range 15) 1146 | -10/Materials | Identified exit to Subcaves 1146 | -10/Materials | Discovered exit to Subcaves (range 5) 1289 | -10/Materials | Discovered exit to Mines (range 8) 1307 | -10/Materials | Entered Mines 1308 | -10/Mines | Assembled infested the area 1386 | -10/Mines | Met a Derelict bent on vengeance 1395 | -10/Mines | Discovered exit to Materials (range 5) 1439 | -10/Mines | Lost 4 parts (2n1u1w) 1516 | -10/Mines | Learned location of 1 exit from Materials 1659 | -10/Mines | Learned Materials stockpile data 1727 | -10/Mines | Discovered exit to Subcaves (range 8) 1735 | -10/Mines | Joined a pair of Derelicts in attacking an 0b10 outpost 1991 | -10/Mines | Found the Drone Emporium 1998 | -10/Mines | Found Prototype Device 1998 | -10/Mines | Identified Thief Drone Bay 2227 | -10/Mines | Discovered exit to Materials (range 4) 2246 | -10/Mines | Found a damaged Exp. Sensor Array with a note attached 2253 | -10/Mines | Found Prototype Device 2253 | -10/Mines | Identified Exp. Sensor Array 2277 | -10/Mines | Build established: Scavenger-Mutant 2904 | -10/Mines | Entered Subcaves 2905 | -10/Subcaves | Approached by a straggling Scientist 2958 | -10/Subcaves | Ambushed by swarm of Subdwellers 2962 | -10/Subcaves | Core integrity fell below 50% 2965 | -10/Subcaves | Ambushed by Subdweller buried in earth 2965 | -10/Subcaves | Ambushed by Subdweller buried in earth 2970 | -10/Subcaves | Core integrity fell below 20% 2976 | -10/Subcaves | Destroyed by 57-0DS(R) with Subdweller Machine Gun Last Messages --------------- 02963_ HV Slug penetrates RO-MBI(R). 02963_ RO-MBI(R) suffers critical hit (Destroy). 02963_ RO-MBI(R) destroyed. 02963_ G3-6K8(R) suffers critical hit (Destroy). 02963_ G3-6K8(R) knocked back. 02963_ Structural Scanner destroyed. 02963_ 8I-9OF(c) destroyed. 02964_ UP-QA3(R) emerges from the Twisted Machinery. 02966_ 5C-4ZL(R): "ARGHSUB!" 02966_ BU-MK9(R): "ARGHSUB!" 02966_ 3X-8CZ(R) destroyed. 02967_ 6F-1SI(h) destroyed. 02971_ JA-G3Z(R) emerges from the Twisted Machinery. 02972_ WB-N1E(R) suffers critical hit (Burn). 02975_ WB-N1E(R) destroyed. 02975_ Switching to secondary target: 57-0DS(R). 02976_ Subatomizers dissect the Sub. Power Source. Map ----- +----------------------------------------------------+ | | | | | | | | | | | | | ?????????????????????????????????????????????????? | | ?????????????????????????????????????????????????? | | ?????????????????????????????????????????????????? | | ?????????????????????????????????????????????????? | | ?????????????????????????????????????????????????? | | ?????????????????????????????????????????????????? | | ?????????????????????????????????????????????????? | | ?????????????????????????????????????????????????? | | ?????????????????????????????????????????????????? | | ?????????????????????????????????????????????????? | | ?????????????????????????????????????????????????? | | ???????????????????????????????##????????????????? | | ????????????????????????????### #????????????????? | | ???????????????????????##### ##???????????????? | | ??????????????????????## #########???????? | | ?????????????????????###; ################# | | ???????????????????#####* R ;# """########## | | ???????????????????####%R* %R =! " #### ##"# | | ???????????? #""[[! [ *%= ## "" | | ???????????? %"R%%[@ !* % g?? | | ??????????? R R%= ;" ## # # | | ?????????? *!;;; #;##### ###### | | ??????????? ###### ####### " ####### | | ??????????? ### ####????#???##"" ###???? | | ????????????##### #####??????????### ### ##????? | | ??????????????#########???????????###########????? | | ???????????????####????????????????##########????? | | ?????????????????????????????????????????????????? | | ?????????????????????????????????????????????????? | | ?????????????????????????????????????????????????? | | ?????????????????????????????????????????????????? | | ?????????????????????????????????????????????????? | | ?????????????????????????????????????????????????? | | ?????????????????????????????????????????????????? | | ?????????????????????????????????????????????????? | | ?????????????????????????????????????????????????? | | ?????????????????????????????????????????????????? | | ?????????????????????????????????????????????????? | | ?????????????????????????????????????????????????? | | ?????????????????????????????????????????????????? | | ?????????????????????????????????????????????????? | | ?????????????????????????????????????????????????? | | ?????????????????????????????????????????????????? | | ?????????????????????????????????????????????????? | +----------------------------------------------------+ Best States ------------- Heat Dissipation 39 Energy Generation 10 Energy Capacity 250 Matter Stores 300 Matter Capacity 300 Sight Range 16 Robot Scan Range 20 Terrain Scan Density 10 Resistance: KI 35 Resistance: TH 35 Resistance: EX 35 Resistance: EM 35 Resistance: I 35 Resistance: S 35 Resistance: P 35 Core Shielding 20 Evasion (%) 53 Recoil Reduction 2 Offensive Hacking 20 Item Schematics ----------------- None Robot Schematics ------------------ None Fabricated ------------ Nothing Repaired ---------- Nothing Studied --------- None Alien Tech Used ----------------- None Achievements -------------- None Challenges ------------ None Game ------ Seed GravjetAuthchipFirepult Manual? 0 Play Time 00:13:24 Cumulative 212.6 hours Start 2025.12.19 @ 12:46:55 End 2025.12.19 @ 12:59:38 Sessions 1 Manual Loads 0 Difficulty Explorer Special Mode None Game No. 322 Rogue 0 Adventurer 0 Explorer 322 Win Type - Total 0 Types 0/0/0/0/0/0/0/0/0/0 Lore% 71 Gallery% 68 Achievement% 53 Wizard Run 0 Options --------- Layout 1 ASCII 0 Keyboard 0 Movement Mouse Keybinds 0 Fullscreen 1 Font 24/Smallcaps Map View 50x35 Zoom Use 0% Tactical HUD 1 Map Filters NONE Filters NONE Steam 1 RUN: 80571f7d-f5db-4a96-8f4c-b8256658e862